bitfinex/quotes_BTCUSD_20241202
["timestamp","ask_amount","ask_price","bid_price","bid_amount"]
[1733169391149,0.0028653,95833.0,95832.0,0.56335244]
[1733169391622,0.0028653,95833.0,95832.0,0.15206155]
[1733169391851,0.0028653,95833.0,95832.0,0.56511523]
[1733169392335,0.0028653,95833.0,95832.0,0.15379215]
[1733169407581,0.0825653,95833.0,95832.0,0.05094694]
[1733169407811,0.11032578,95833.0,95832.0,0.0187117]
[1733169408793,0.0008653,95833.0,95832.0,0.0027117]
[1733169409270,0.30502592,95833.0,95832.0,0.0097117]
[1733169409508,0.30271725,95833.0,95832.0,0.0067117]
[1733169409780,0.30271725,95833.0,95832.0,0.0067306]
[1733169410028,0.30271725,95833.0,95832.0,0.0047306]
[1733169410531,0.07215195,95831.0,95830.0,5.8e-07]
[1733169410760,0.30316128,95831.0,95830.0,5.8e-07]
[1733169410988,0.40368341,95831.0,95830.0,5.8e-07]
[1733169411229,0.30085195,95831.0,95830.0,5.8e-07]
[1733169411446,0.31220424,95831.0,95830.0,5.8e-07]
[1733169411692,0.31546885,95831.0,95830.0,5.8e-07]
[1733169412205,0.30411656,95831.0,95830.0,5.8e-07]
[1733169412653,0.30611656,95831.0,95830.0,5.8e-07]
[1733169412889,0.30285195,95831.0,95830.0,5.8e-07]
[1733169413099,0.31111643,95831.0,95830.0,0.00100058]
[1733169413318,0.31511643,95831.0,95830.0,0.00100058]
[1733169413571,0.30811643,95831.0,95830.0,5.8e-07]
[1733169413809,0.31111643,95831.0,95830.0,5.8e-07]
[1733169414937,0.30411643,95831.0,95830.0,5.8e-07]
[1733169415158,0.30611643,95831.0,95830.0,5.8e-07]
[1733169415379,0.30911643,95831.0,95830.0,5.8e-07]
[1733169415595,0.30611643,95831.0,95830.0,5.8e-07]
[1733169415860,0.30911643,95831.0,95830.0,5.8e-07]
[1733169416105,0.30411643,95831.0,95830.0,5.8e-07]
[1733169416322,0.30411643,95831.0,95830.0,0.10284579]
[1733169416323,0.002,95831.0,95830.0,0.10284579]
[1733169416551,0.005,95831.0,95830.0,0.10284579]
[1733169416796,0.002,95831.0,95830.0,0.10284579]
[1733169417043,0.005,95831.0,95830.0,0.10284579]
[1733169417783,0.003,95831.0,95830.0,0.10284579]
[1733169418266,0.001,95831.0,95830.0,0.10284579]
[1733169418510,0.002,95831.0,95830.0,0.10884579]
[1733169418736,0.208698,95832.0,95830.0,0.10284579]
[1733169418978,0.208698,95832.0,95831.0,0.10284521]
[1733169421338,0.208698,95832.0,95831.0,0.10884521]
[1733169421583,0.209698,95832.0,95831.0,0.11784521]
[1733169421813,0.209698,95832.0,95831.0,0.11184521]
[1733169422050,0.208698,95832.0,95831.0,0.09609989]
[1733169422272,0.210698,95832.0,95831.0,0.11109989]
[1733169422780,0.209698,95832.0,95831.0,0.10509989]
[1733169423000,0.208698,95832.0,95831.0,0.09609989]
[1733169423246,0.208698,95832.0,95831.0,0.09605893]
[1733169423511,0.209698,95832.0,95831.0,0.10505893]
[1733169424213,0.209698,95832.0,95831.0,0.009]
[1733169424949,0.209698,95832.0,95831.0,0.11784521]
[1733169425208,0.208698,95832.0,95831.0,0.18844521]
[1733169425442,0.209698,95832.0,95831.0,0.19144521]
[1733169425687,0.208698,95832.0,95831.0,0.18744521]
[1733169425931,0.209698,95832.0,95831.0,0.11684521]
[1733169426162,0.209698,95832.0,95831.0,0.11184521]
[1733169426408,0.232698,95832.0,95831.0,0.11184521]
[1733169426639,0.232698,95832.0,95831.0,0.11784521]
[1733169427150,0.232698,95832.0,95831.0,0.11957581]
[1733169427381,0.2335633,95832.0,95831.0,0.11957581]
[1733169431420,0.0018653,95832.0,95831.0,0.11957581]
[1733169431640,9.195e-05,95841.0,95840.0,0.50564805]
[1733169431878,0.000865,95860.0,95842.0,0.37454805]
[1733169432089,0.000865,95860.0,95859.0,0.30564805]
[1733169432325,0.000865,95860.0,95859.0,0.40849326]
[1733169432757,0.000865,95860.0,95859.0,2.30999326]
[1733169432972,0.000865,95860.0,95859.0,2.34209922]
[1733169434297,0.006865,95860.0,95859.0,2.34309922]
[1733169434540,0.006865,95860.0,95859.0,2.31099326]
[1733169434764,0.009865,95860.0,95859.0,2.31199326]
[1733169435467,0.009865,95860.0,95859.0,2.72128224]
[1733169436385,0.009865,95860.0,95859.0,2.72127062]
[1733169436603,0.009865,95860.0,95859.0,2.31199326]
[1733169437073,0.009865,95860.0,95859.0,2.31298466]
[1733169437535,0.009865,95860.0,95859.0,2.51298466]
[1733169437791,0.009865,95860.0,95859.0,2.54500576]
[1733169438005,0.000865,95862.0,95861.0,0.37454805]
[1733169438216,0.000865,95862.0,95861.0,1.04491436]
[1733169438650,0.000865,95862.0,95861.0,1.19491436]
[1733169438902,0.000865,95862.0,95861.0,1.16289326]
[1733169439335,0.000865,95862.0,95861.0,1.16389326]
[1733169439774,0.000865,95862.0,95861.0,0.96389326]
[1733169439988,0.000865,95862.0,95861.0,0.83934521]
[1733169440245,0.000865,95862.0,95861.0,0.63934521]
[1733169440464,0.001865,95862.0,95861.0,0.64034521]
[1733169440678,0.00061121,95862.0,95861.0,0.64034521]
[1733169443264,0.00061121,95862.0,95861.0,0.84034521]
[1733169444158,0.208617,95870.0,95862.0,0.2]
[1733169444373,0.208617,95870.0,95862.0,0.30284521]
[1733169444811,0.208624,95867.0,95862.0,0.30284521]
[1733169445981,0.208624,95867.0,95862.0,0.30384521]
[1733169446218,0.208624,95867.0,95862.0,0.10384521]
[1733169446469,0.208624,95867.0,95862.0,0.30384521]
[1733169446696,0.208624,95867.0,95863.0,0.2]
[1733169446928,0.208624,95867.0,95864.0,0.10284521]
[1733169447137,0.417248,95867.0,95864.0,0.10284521]
[1733169448453,0.417248,95867.0,95864.0,0.10384521]
[1733169449117,0.208624,95867.0,95864.0,0.10384521]
[1733169449749,0.208624,95867.0,95864.0,0.10484521]
[1733169450878,0.417248,95867.0,95864.0,0.10484521]
[1733169451816,0.4181127,95867.0,95864.0,0.10484521]
[1733169452091,0.2094887,95867.0,95864.0,0.10484521]
[1733169452328,0.4181117,95867.0,95864.0,0.10484521]
[1733169454225,0.2094877,95867.0,95864.0,0.10484521]
[1733169455133,0.4181107,95867.0,95864.0,0.10484521]
[1733169458009,0.4181107,95867.0,95864.0,0.10197451]
[1733169461050,0.208626,95865.0,95864.0,0.10197451]
[1733169461572,0.208626,95865.0,95864.0,0.002]
[1733169461833,0.21093385,95865.0,95864.0,0.002]
[1733169462096,0.3833858,95865.0,95864.0,0.001]
[1733169462354,0.23408895,95860.0,95859.0,0.0027208]
[1733169462588,0.48318895,95860.0,95859.0,0.0027208]
[1733169462826,0.48318895,95860.0,95859.0,0.0017294]
[1733169464828,0.46118895,95860.0,95859.0,0.0087294]
[1733169465330,0.208637,95860.0,95859.0,0.10457461]
[1733169465617,0.12553496,95930.0,95902.0,0.52034988]
[1733169465899,0.208541,95905.0,95903.0,0.10284521]
[1733169467050,0.20859983,95905.0,95903.0,0.11084521]
[1733169467289,0.20959983,95905.0,95903.0,0.11084521]
[1733169468233,0.00105883,95905.0,95903.0,0.11984521]
[1733169468700,0.20959883,95905.0,95903.0,0.11984521]
[1733169474269,0.00105883,95905.0,95903.0,0.11984521]
[1733169474514,0.00105883,95905.0,95903.0,0.32838721]
[1733169474999,0.00105883,95905.0,95903.0,0.11984521]
[1733169475247,0.00192323,95905.0,95903.0,0.11984521]
[1733169475481,0.00092323,95905.0,95903.0,0.10284521]
[1733169475706,0.00992323,95905.0,95903.0,0.10384521]
[1733169475958,0.01192323,95905.0,95903.0,0.10484521]
[1733169476252,0.00292323,95905.0,95903.0,0.10384521]
[1733169476483,0.01192323,95905.0,95903.0,0.10484521]
[1733169476941,0.00992323,95905.0,95903.0,0.10384521]
[1733169477448,0.00992323,95905.0,95903.0,0.10484521]
[1733169477919,0.00092323,95905.0,95903.0,0.10384521]
[1733169478156,0.00092323,95905.0,95903.0,0.10484521]
[1733169478634,0.00092323,95905.0,95903.0,0.10384521]
[1733169478883,0.00092323,95905.0,95903.0,0.10484521]
[1733169480112,0.00092323,95905.0,95903.0,0.10384521]
[1733169480627,0.00092323,95905.0,95903.0,0.10484521]
[1733169480849,0.00092323,95905.0,95903.0,0.10384521]
[1733169483014,0.208541,95904.0,95903.0,0.13384521]
[1733169483242,0.208541,95904.0,95903.0,0.13284521]
[1733169483471,0.00066258,95905.0,95903.0,0.54155214]
[1733169483734,0.208541,95904.0,95903.0,0.54255214]
[1733169484198,0.20770756,95904.0,95903.0,0.54355214]
[1733169484439,0.20770756,95904.0,95903.0,0.13284521]
[1733169484918,0.20770756,95904.0,95903.0,0.13484521]
[1733169485164,0.20770756,95904.0,95903.0,0.13384521]
[1733169485405,0.20770756,95904.0,95903.0,0.13284521]
[1733169485637,0.20870756,95904.0,95903.0,0.13384521]
[1733169486619,0.20870756,95904.0,95903.0,0.13484521]
[1733169488196,0.20870756,95904.0,95903.0,0.13657381]
[1733169501083,0.20957186,95904.0,95903.0,0.13657381]
[1733169506528,0.28977889,95904.0,95903.0,0.0337286]
[1733169506751,0.30506715,95904.0,95903.0,0.0337286]
[1733169507448,0.30506715,95904.0,95903.0,0.0327286]
[1733169507667,0.30506715,95904.0,95903.0,0.0337286]
[1733169507885,0.30406715,95904.0,95903.0,0.0327286]
[1733169509787,0.31306715,95904.0,95903.0,0.0337286]
[1733169512425,0.29547186,95904.0,95903.0,0.0337286]
[1733169516861,0.21757186,95904.0,95903.0,0.0337286]
[1733169517553,0.21503698,95904.0,95903.0,0.0337286]
[1733169519335,0.21202018,95904.0,95903.0,0.0337286]
[1733169521355,0.21202018,95904.0,95903.0,0.13657381]
[1733169522884,0.21202018,95904.0,95903.0,0.54569645]
[1733169524136,0.21202018,95904.0,95903.0,0.13657381]
[1733169524551,0.21202018,95904.0,95903.0,0.18637381]
[1733169526945,0.0098643,95904.0,95903.0,0.28847381]
[1733169527198,0.0098643,95904.0,95903.0,0.32067587]
[1733169528079,0.0008643,95904.0,95903.0,0.94567587]
[1733169528294,0.0178643,95904.0,95903.0,0.74767587]
[1733169528576,0.0098643,95904.0,95903.0,0.74667587]
[1733169528826,0.0088643,95904.0,95903.0,0.74667587]
[1733169529048,0.0178643,95904.0,95903.0,0.74767587]
[1733169531158,0.0178643,95904.0,95903.0,0.66857587]
[1733169532615,0.0178643,95904.0,95903.0,0.59577587]
[1733169533085,0.0178643,95904.0,95903.0,0.56357381]
[1733169536131,0.0178643,95904.0,95903.0,0.97423519]
[1733169537131,0.0178643,95904.0,95903.0,0.56357381]
[1733169543875,0.01355713,95904.0,95903.0,0.56357381]
[1733169547856,0.01442143,95904.0,95903.0,0.56357381]
[1733169551589,0.01442143,95904.0,95903.0,0.5957935]
[1733169554982,0.01442143,95904.0,95903.0,0.6444935]
[1733169557976,0.01442143,95904.0,95903.0,0.5957935]
[1733169558221,0.09612143,95904.0,95903.0,0.44463234]
[1733169559163,0.08712143,95904.0,95903.0,0.44363234]
[1733169559372,0.09612143,95904.0,95903.0,0.44463234]
[1733169559631,0.0915643,95904.0,95903.0,0.44363234]
[1733169559851,0.0825643,95904.0,95903.0,0.44263234]
[1733169560300,0.0008643,95904.0,95903.0,0.0317286]
[1733169560547,0.0098643,95904.0,95903.0,0.03216916]
[1733169560815,0.0098643,95904.0,95903.0,0.13501437]
[1733169561036,0.0188643,95904.0,95903.0,0.16823819]
[1733169561747,0.0188643,95904.0,95903.0,0.13601437]
[1733169564475,0.0188643,95904.0,95903.0,0.16825632]
[1733169568527,0.0188643,95904.0,95903.0,0.43705632]
[1733169568747,0.0188643,95904.0,95903.0,0.64560032]
[1733169568974,0.0188643,95904.0,95903.0,0.81273699]
[1733169569468,0.0098643,95904.0,95903.0,0.81173699]
[1733169569910,0.0188643,95904.0,95903.0,0.81273699]
[1733169570124,0.0008643,95904.0,95903.0,0.81073699]
[1733169570342,0.0098643,95904.0,95903.0,0.81273699]
[1733169570556,0.0188643,95904.0,95903.0,0.81273699]
[1733169570773,0.0098643,95904.0,95903.0,0.81173699]
[1733169571001,0.0188643,95904.0,95903.0,0.81273699]
[1733169571242,0.0188643,95904.0,95903.0,0.81173699]
[1733169571460,0.0098643,95904.0,95903.0,0.81173699]
[1733169571683,0.0188643,95904.0,95903.0,0.81173699]
[1733169571933,0.0278643,95904.0,95903.0,0.81273699]
[1733169572155,0.0278643,95904.0,95903.0,0.81173699]
[1733169572389,0.0188643,95904.0,95903.0,0.81173699]
[1733169572617,0.0098643,95904.0,95903.0,0.81173699]
[1733169573274,0.0008643,95904.0,95903.0,0.81073699]
[1733169573720,0.0098643,95904.0,95903.0,0.81173699]
[1733169573991,0.0188643,95904.0,95903.0,0.81273699]
[1733169574438,0.000865,95924.0,95915.0,0.208517]
[1733169574679,0.000865,95924.0,95921.0,0.10382641]
[1733169574680,0.00145291,95924.0,95921.0,0.10382641]
[1733169575411,0.000865,95928.0,95921.0,0.10382641]
[1733169575412,0.000865,95928.0,95927.0,0.1504]
[1733169575661,0.000865,95928.0,95927.0,0.46173621]
[1733169575939,0.000865,95928.0,95927.0,0.25324521]
[1733169576167,0.000865,95928.0,95927.0,0.17174521]
[1733169576605,0.000865,95928.0,95927.0,0.14874521]
[1733169576825,0.000865,95928.0,95927.0,0.10284521]
[1733169577069,0.125865,95928.0,95921.0,0.10956911]
[1733169577302,0.125865,95928.0,95927.0,0.001]
[1733169577303,0.34066018,95928.0,95927.0,0.001]
[1733169577530,0.542844,95928.0,95925.0,0.41084591]
[1733169577746,0.542844,95928.0,95927.0,0.001]
[1733169578402,0.542844,95928.0,95927.0,0.002]
[1733169578835,0.334354,95928.0,95921.0,0.00156911]
[1733169579068,0.208502,95922.0,95921.0,0.00156911]
[1733169579294,0.208502,95922.0,95921.0,0.10541432]
[1733169579519,0.208502,95922.0,95921.0,0.10441432]
[1733169580468,0.208502,95922.0,95921.0,0.11341432]
[1733169581856,0.209502,95922.0,95921.0,0.12241432]
[1733169582626,0.208502,95922.0,95921.0,0.11341432]
[1733169582857,0.209502,95922.0,95921.0,0.12241432]
[1733169583825,0.21180854,95922.0,95921.0,0.01956911]
[1733169585260,0.34220854,95922.0,95921.0,0.01956911]
[1733169585492,0.339902,95922.0,95921.0,0.01956911]
[1733169585957,0.339902,95922.0,95921.0,0.01858791]
[1733169592583,0.339902,95922.0,95921.0,0.02031751]
[1733169602178,0.489902,95922.0,95921.0,0.02031751]
[1733169602839,0.489902,95922.0,95921.0,5.1e-07]
[1733169603054,0.489902,95922.0,95912.0,5e-07]
[1733169603055,0.358522,95913.0,95912.0,5e-07]
[1733169603267,0.484322,95913.0,95912.0,5e-07]
[1733169603702,0.48502255,95913.0,95912.0,5e-07]
[1733169603937,0.358541,95904.0,95903.0,1e-07]
[1733169604202,0.484941,95904.0,95903.0,1e-07]
[1733169604423,0.484941,95904.0,95876.0,0.41128128]
[1733169604424,0.98764883,95904.0,95876.0,0.41128128]
[1733169604648,0.358552,95899.0,95874.0,0.41128128]
[1733169604867,0.358552,95899.0,95857.0,0.39475716]
[1733169604868,0.435352,95899.0,95871.0,0.41128128]
[1733169605092,0.43325676,95899.0,95869.0,0.41128128]
[1733169605311,0.43325676,95899.0,95868.0,0.41128128]
[1733169605571,0.43325676,95899.0,95898.0,1.0027288]
[1733169605800,0.58762787,95899.0,95898.0,0.8765988]
[1733169606035,0.48285676,95899.0,95898.0,0.8765988]
[1733169606272,0.28325676,95899.0,95898.0,0.8795988]
[1733169606971,0.28325676,95899.0,95898.0,0.8815988]
[1733169607192,0.28325676,95899.0,95898.0,0.8825849]
[1733169607635,0.28325676,95899.0,95898.0,0.8805849]
[1733169607873,0.28325676,95899.0,95898.0,0.8795849]
[1733169608127,0.43325676,95899.0,95898.0,0.8835849]
[1733169608338,0.45142486,95899.0,95898.0,0.8775849]
[1733169608791,0.49712486,95899.0,95898.0,0.8835849]
[1733169609048,0.35645676,95899.0,95898.0,0.8795849]
[1733169609263,0.35645676,95899.0,95898.0,0.8835849]
[1733169609727,0.35645676,95899.0,95898.0,0.8795849]
[1733169609958,0.35645676,95899.0,95898.0,0.8775849]
[1733169610421,0.35645676,95899.0,95898.0,0.8805849]
[1733169610938,0.0816,95919.0,95898.0,0.98343011]
[1733169611163,0.208552,95900.0,95899.0,0.10284521]
[1733169611615,0.00230709,95918.0,95899.0,0.10284521]
[1733169611616,0.208547,95902.0,95899.0,0.10284521]
[1733169611849,0.208513,95917.0,95899.0,0.10284521]
[1733169612069,0.00230696,95916.0,95899.0,0.10284521]
[1733169612309,0.208531,95909.0,95908.0,0.0009907]
[1733169613267,0.21083795,95909.0,95908.0,0.0009907]
[1733169614441,0.21183795,95909.0,95908.0,0.0069907]
[1733169614857,0.21283795,95909.0,95908.0,0.0159907]
[1733169615090,0.21083795,95909.0,95908.0,0.0009907]
[1733169615544,0.21183795,95909.0,95908.0,0.0099907]
[1733169616230,0.002,95909.0,95908.0,0.11983591]
[1733169616701,0.002,95909.0,95908.0,0.24833591]
[1733169617405,0.53009769,95922.0,95909.0,0.208531]
[1733169617650,0.53009769,95922.0,95910.0,0.51324755]
[1733169617888,0.73860069,95922.0,95911.0,0.41040234]
[1733169618132,0.208512,95918.0,95912.0,0.10284521]
[1733169618374,0.208512,95918.0,95912.0,0.51324755]
[1733169618604,0.208512,95918.0,95912.0,0.10284521]
[1733169618848,0.208512,95918.0,95912.0,0.51324755]
[1733169619069,0.20833629,95918.0,95912.0,0.51324755]
[1733169619546,0.20833629,95918.0,95913.0,0.41040234]
[1733169619827,0.20833629,95918.0,95914.0,0.10284521]
[1733169620599,0.003,95918.0,95914.0,0.10284521]
[1733169620887,0.003,95918.0,95917.0,0.31135821]
[1733169621131,0.32159469,95922.0,95921.0,0.208504]
[1733169621384,0.32159469,95922.0,95921.0,0.31234131]
[1733169623101,0.27281712,95922.0,95921.0,0.44414131]
[1733169623357,0.0367193,95939.0,95927.0,0.690291]
[1733169623578,0.00096913,95928.0,95927.0,1.70713621]
[1733169624532,0.00396913,95928.0,95927.0,1.70813621]
[1733169624790,0.00096913,95928.0,95927.0,1.70713621]
[1733169625012,0.00096913,95928.0,95927.0,1.49864521]
[1733169625230,0.00396913,95928.0,95927.0,1.49964521]
[1733169625896,0.01296913,95928.0,95927.0,1.50064521]
[1733169626346,0.00096913,95928.0,95927.0,1.49864521]
[1733169626567,0.01296913,95928.0,95927.0,1.50064521]
[1733169626788,0.00996913,95928.0,95927.0,1.49964521]
[1733169627036,0.0367193,95939.0,95928.0,0.781489]
[1733169627264,0.0367193,95939.0,95928.0,0.88433421]
[1733169629244,0.0367193,95939.0,95928.0,0.88533421]
[1733169629709,0.003865,95929.0,95928.0,0.88533421]
[1733169629969,0.000865,95929.0,95928.0,0.88533421]
[1733169630438,0.003865,95929.0,95928.0,0.88533421]
[1733169630696,0.000865,95929.0,95928.0,0.66133421]
[1733169630926,0.000865,95929.0,95928.0,0.66233421]
[1733169631166,0.000865,95929.0,95928.0,0.25484521]
[1733169631167,0.003865,95929.0,95928.0,0.25484521]
[1733169631881,0.003865,95929.0,95928.0,0.25384521]
[1733169632369,0.000865,95929.0,95928.0,0.25384521]
[1733169632898,0.003865,95929.0,95928.0,0.25384521]
[1733169633159,0.000865,95929.0,95928.0,0.25384521]
[1733169633421,0.003865,95929.0,95928.0,0.25484521]
[1733169633683,0.000865,95929.0,95928.0,0.25284521]
[1733169634214,0.000865,95929.0,95928.0,0.25484521]
[1733169634215,0.003865,95929.0,95928.0,0.25484521]
[1733169638536,0.003865,95929.0,95928.0,0.66351524]
[1733169639461,0.003865,95929.0,95928.0,0.79261524]
[1733169639689,0.003865,95929.0,95928.0,0.38394521]
[1733169640170,0.00260375,95929.0,95928.0,0.58294521]
[1733169640446,0.000865,95932.0,95929.0,0.358487]
[1733169640680,0.0151337,95932.0,95931.0,0.4081163]
[1733169640906,0.0151337,95932.0,95931.0,0.79104611]
[1733169641674,0.01209921,95932.0,95931.0,0.79104611]
[1733169642155,0.01008078,95932.0,95931.0,0.38292981]
[1733169642410,0.01094558,95932.0,95931.0,0.38292981]
[1733169642627,0.01094558,95932.0,95931.0,0.32025431]
[1733169642871,0.01094558,95932.0,95931.0,0.30282981]
[1733169643085,0.01094558,95932.0,95931.0,0.30382981]
[1733169643524,0.01094558,95932.0,95931.0,0.15282981]
[1733169643750,0.01294558,95932.0,95931.0,0.10482981]
[1733169643983,0.015252,95932.0,95931.0,0.0029846]
[1733169644213,0.017252,95932.0,95931.0,0.0039846]
[1733169644427,0.01717903,95932.0,95931.0,0.0039846]
[1733169644642,0.01317903,95932.0,95931.0,0.0019846]
[1733169645316,0.416966,95931.0,95928.0,0.0017296]
[1733169645570,0.208487,95929.0,95928.0,0.0017296]
[1733169645788,0.21079362,95929.0,95928.0,0.0017296]
[1733169646458,0.22080143,95929.0,95928.0,0.0017296]
[1733169646674,0.34499481,95929.0,95928.0,0.0017296]
[1733169647098,0.34499481,95929.0,95928.0,0.0087296]
[1733169647539,0.34599481,95929.0,95928.0,0.0087296]
[1733169647994,0.34499481,95929.0,95928.0,0.0087296]
[1733169648473,0.34499481,95929.0,95928.0,0.0017296]
[1733169648686,0.34499481,95929.0,95928.0,0.0077296]
[1733169649622,0.34599481,95929.0,95928.0,0.0157296]
[1733169650925,0.34499481,95929.0,95928.0,0.0077296]
[1733169651349,0.34499481,95929.0,95928.0,0.0017296]
[1733169651784,0.34499481,95929.0,95928.0,0.0047296]
[1733169652247,0.34499481,95929.0,95928.0,0.0017296]
[1733169652945,0.34799481,95929.0,95928.0,0.0017296]
[1733169653169,0.34499481,95929.0,95928.0,0.0037296]
[1733169654546,0.34499481,95929.0,95928.0,0.0017296]
[1733169654764,0.34499481,95929.0,95928.0,0.0027296]
[1733169654981,0.36799481,95929.0,95928.0,0.0027296]
[1733169655202,0.36799481,95929.0,95928.0,0.0017296]
[1733169655433,0.36799481,95929.0,95928.0,0.0027296]
[1733169655882,0.36799481,95929.0,95928.0,0.0047296]
[1733169656153,0.36799481,95929.0,95928.0,0.0017296]
[1733169656379,0.5,95928.0,95927.0,6.5e-07]
[1733169656620,0.61285302,95928.0,95927.0,6.5e-07]
[1733169657585,0.81285302,95928.0,95927.0,6.5e-07]
[1733169657808,0.81745329,95928.0,95927.0,6.5e-07]
[1733169658309,0.81285302,95928.0,95927.0,6.5e-07]
[1733169658739,0.81885302,95928.0,95927.0,6.5e-07]
[1733169658998,0.2,95923.0,95918.0,0.0009944]
[1733169659239,0.74415643,95922.0,95918.0,0.00158231]
[1733169659452,0.173,95919.0,95918.0,0.00158231]
[1733169659659,0.17530722,95919.0,95918.0,0.00058791]
[1733169660619,0.18531503,95919.0,95918.0,0.00058791]
[1733169661407,0.20283476,95919.0,95918.0,0.00158791]
[1733169661652,0.28583476,95919.0,95918.0,0.00158791]
[1733169661903,0.28352754,95919.0,95918.0,0.00158791]
[1733169662132,0.28352754,95919.0,95918.0,0.00258791]
[1733169662440,0.28352754,95919.0,95918.0,0.00058791]
[1733169662641,0.28552754,95919.0,95918.0,0.00058791]
[1733169662883,0.28352754,95919.0,95918.0,0.00058791]
[1733169663133,0.28552754,95919.0,95918.0,0.00058791]
[1733169663373,0.28352754,95919.0,95918.0,0.00058791]
[1733169663602,0.26052754,95919.0,95918.0,0.00058791]
[1733169663826,0.26252754,95919.0,95918.0,0.00058791]
[1733169664789,0.26252754,95919.0,95918.0,9.1e-07]
[1733169664790,0.58837275,95919.0,95918.0,9.1e-07]
[1733169665064,0.83407275,95919.0,95918.0,9.1e-07]
[1733169665327,0.83207275,95919.0,95918.0,9.1e-07]
[1733169665589,0.73175663,95919.0,95918.0,9.1e-07]
[1733169665888,0.73519587,95919.0,95918.0,9.1e-07]
[1733169666109,0.73519587,95919.0,95908.0,0.0027275]
[1733169666110,0.373,95909.0,95908.0,5e-07]
[1733169666341,0.59904521,95909.0,95908.0,5e-07]
[1733169666795,0.60905302,95909.0,95908.0,5e-07]
[1733169667025,0.80905302,95909.0,95908.0,5e-07]
[1733169668011,0.81502135,95909.0,95908.0,5e-07]
[1733169668514,0.82302135,95909.0,95908.0,5e-07]
[1733169668734,0.82302135,95909.0,95898.0,0.8574743]
[1733169668735,0.707552,95899.0,95898.0,0.8574743]
[1733169668976,0.81039721,95899.0,95898.0,0.8157643]
[1733169669672,0.62040502,95899.0,95898.0,0.8157643]
[1733169669918,0.44585981,95899.0,95898.0,0.8157643]
[1733169670161,0.29585981,95899.0,95898.0,0.8157643]
[1733169670411,0.24009026,95899.0,95898.0,0.8157643]
[1733169671671,0.23609026,95899.0,95898.0,0.8167491]
[1733169671898,0.23909026,95899.0,95898.0,0.8167491]
[1733169672123,0.23609026,95899.0,95898.0,0.8167491]
[1733169672382,0.23609026,95899.0,95898.0,0.8207491]
[1733169672856,0.23609026,95899.0,95898.0,0.8187491]
[1733169673084,0.23609026,95899.0,95898.0,0.8207491]
[1733169673336,0.23609026,95899.0,95898.0,0.8187491]
[1733169673607,0.23609026,95899.0,95898.0,0.8167491]
[1733169673838,0.02753826,95899.0,95898.0,1.0253031]
[1733169674074,0.02753826,95899.0,95898.0,0.8167491]
[1733169674075,0.01000781,95899.0,95898.0,0.8167491]
[1733169674554,0.01300781,95899.0,95898.0,0.91959431]
[1733169674777,0.01300781,95899.0,95898.0,0.9282997]
[1733169675284,0.01300781,95899.0,95898.0,0.9272997]
[1733169675541,0.01300781,95899.0,95898.0,0.9342997]
[1733169675784,0.01300781,95899.0,95898.0,0.9362997]
[1733169676008,0.01000781,95899.0,95898.0,0.93430092]
[1733169676240,0.01100781,95899.0,95898.0,0.93930092]
[1733169677203,0.01100781,95899.0,95898.0,0.93230092]
[1733169677452,0.01000781,95899.0,95898.0,0.93430092]
[1733169677911,0.01100781,95899.0,95898.0,0.93630092]
[1733169678154,0.01000781,95899.0,95898.0,0.93430092]
[1733169678649,0.01000781,95899.0,95898.0,0.94330092]
[1733169678650,0.01100781,95899.0,95898.0,0.94330092]
[1733169679152,0.03400781,95899.0,95898.0,0.94330092]
[1733169679390,0.01000781,95899.0,95898.0,0.93430092]
[1733169679625,0.01000781,95899.0,95898.0,0.98360092]
[1733169680100,0.01000781,95899.0,95898.0,0.97660092]
[1733169680560,0.01100781,95899.0,95898.0,0.99060092]
[1733169680799,0.01000781,95899.0,95898.0,0.98360092]
[1733169681046,0.01000781,95899.0,95898.0,0.97660092]
[1733169681291,0.01100781,95899.0,95898.0,0.99060092]
[1733169681534,0.01000781,95899.0,95898.0,0.98360092]
[1733169681812,0.01100781,95899.0,95898.0,0.98360092]
[1733169682057,0.01100781,95899.0,95898.0,0.99160092]
[1733169682572,0.01000781,95899.0,95898.0,0.98460092]
[1733169682809,0.0005876,95919.0,95898.0,1.52583787]
[1733169683064,0.208449,95947.0,95926.0,0.208494]
[1733169683297,0.208449,95947.0,95926.0,0.43733921]
[1733169683584,0.000865,95956.0,95926.0,0.43733921]
[1733169683585,0.00095053,95927.0,95926.0,0.44504582]
[1733169683831,0.21074009,95954.0,95931.0,0.208483]
[1733169684049,0.21074009,95954.0,95931.0,0.31132821]
[1733169684050,0.208443,95950.0,95931.0,0.31132821]
[1733169684314,0.0023061,95949.0,95931.0,0.31903482]
[1733169684558,0.208451,95946.0,95931.0,0.31903482]
[1733169684811,0.00230612,95945.0,95931.0,0.31903482]
[1733169685294,0.00321901,95937.0,95931.0,0.32703482]
[1733169685539,0.00321901,95937.0,95933.0,0.208478]
[1733169685778,0.00321901,95937.0,95934.0,0.10284521]
[1733169686027,0.00321901,95937.0,95935.0,0.00770661]
[1733169686272,0.00321901,95937.0,95936.0,0.10284521]
[1733169686501,0.00321901,95937.0,95936.0,0.11055182]
[1733169687020,0.00321901,95937.0,95936.0,0.11053318]
[1733169687253,0.00321901,95937.0,95936.0,0.10284521]
[1733169687722,0.00321901,95937.0,95936.0,0.10884521]
[1733169688205,0.00552524,95937.0,95936.0,0.10983271]
[1733169688682,0.00321901,95937.0,95936.0,0.10983271]
[1733169689136,0.00421901,95937.0,95936.0,0.11883271]
[1733169689379,0.00321901,95937.0,95936.0,0.10983271]
[1733169689609,0.00321901,95937.0,95936.0,0.10383271]
[1733169689836,0.00421901,95937.0,95936.0,0.11283271]
[1733169690059,0.00508401,95937.0,95936.0,0.11883271]
[1733169690958,0.00408401,95937.0,95936.0,0.10983271]
[1733169691182,0.00508401,95937.0,95936.0,0.11883271]
[1733169691429,0.00408401,95937.0,95936.0,0.10983271]
[1733169691903,0.00508401,95937.0,95936.0,0.11883271]
[1733169692133,0.00508401,95937.0,95936.0,0.10983271]
[1733169692369,0.04168401,95937.0,95936.0,0.11883271]
[1733169692604,0.03968401,95937.0,95936.0,0.10983271]
[1733169693069,0.04068401,95937.0,95936.0,0.11883271]
[1733169693294,0.04068401,95937.0,95936.0,0.11283271]
[1733169693991,0.04068401,95937.0,95936.0,0.11883271]
[1733169694534,0.03968401,95937.0,95936.0,0.10383271]
[1733169694736,0.04868401,95937.0,95936.0,0.11383271]
[1733169694955,0.03968401,95937.0,95936.0,0.11283271]
[1733169695385,0.04068401,95937.0,95936.0,0.12183271]
[1733169698569,0.04068401,95937.0,95936.0,0.12951144]
[1733169700397,0.04068401,95937.0,95936.0,0.25701144]
[1733169701541,0.04068401,95937.0,95936.0,0.25874084]
[1733169705832,0.04068401,95937.0,95936.0,0.18064084]
[1733169706747,0.04068401,95937.0,95936.0,0.13124084]
[1733169709392,0.04068401,95937.0,95936.0,0.16341829]
[1733169710757,0.04068401,95937.0,95936.0,0.13124084]